bitfinex-derivatives/quotes_ETHF0:USTF0_20241023
["timestamp","ask_amount","ask_price","bid_price","bid_amount"]
[1729712871362,0.39922,2507.5,2507.4,23.29922]
[1729712871765,4.92878911,2507.5,2507.4,0.39922]
[1729712872265,0.39925,2507.4,2507.2,22.9]
[1729712872563,0.39922,2507.5,2507.4,0.39923]
[1729712872965,4.53041949,2507.3,2507.2,23.29927]
[1729712873172,4.92964949,2507.5,2507.2,22.9]
[1729712873369,7.38901,2507.6,2507.2,23.89816]
[1729712873670,7.38901,2507.6,2507.5,0.39922]
[1729712873874,0.39923,2507.5,2507.4,0.39922]
[1729712874063,4.62500166,2507.5,2507.4,0.39922]
[1729712874262,0.39923,2507.5,2507.4,0.39922]
[1729712874665,4.70931552,2507.5,2507.4,0.39922]
[1729712875975,0.39925,2507.4,2507.3,0.39924]
[1729712876270,0.39925,2507.4,2507.2,22.9]
[1729712876271,4.43155593,2507.4,2507.2,22.9]
[1729712876465,4.43155593,2507.4,2507.3,0.39925]
[1729712876665,4.76201537,2507.5,2507.4,0.39922]
[1729712876870,0.39923,2507.5,2507.4,0.39922]
[1729712877175,4.76201537,2507.5,2507.4,0.39922]
[1729712878275,4.76200537,2507.5,2507.4,0.39922]
[1729712878473,4.36278537,2507.5,2507.4,0.39922]
[1729712878677,4.36278537,2507.5,2507.4,4.38722]
[1729712879271,4.27252451,2507.6,2507.5,0.39922]
[1729712879673,3.9083,2507.9,2507.6,0.3992]
[1729712879870,0.6779,2508.1,2508.0,0.39914]
[1729712880276,8.35926946,2508.1,2507.6,0.3992]
[1729712880576,8.75839946,2508.1,2508.0,0.39914]
[1729712880767,5.24926946,2508.1,2507.4,4.20587]
[1729712880972,8.35926946,2508.1,2508.0,0.39914]
[1729712881177,4.57136946,2508.1,2508.0,0.39914]
[1729712881374,0.6779,2508.5,2508.4,0.39907]
[1729712881674,5.0053242,2508.5,2508.4,0.39907]
[1729712881880,4.3274242,2508.5,2508.4,0.39907]
[1729712882072,4.3274242,2508.5,2508.4,23.29907]
[1729712882275,0.16921794,2508.6,2508.5,0.39906]
[1729712882477,0.6953,2508.7,2508.4,22.9]
[1729712882672,0.6953,2508.7,2508.6,0.39904]
[1729712883070,4.94894694,2508.7,2508.6,0.39904]
[1729712883472,4.25364694,2508.7,2508.6,0.39904]
[1729712883677,4.25364694,2508.7,2508.6,4.38544]
[1729712883977,4.24854883,2508.8,2508.6,4.38544]
[1729712884175,4.24854883,2508.8,2508.7,0.39903]
[1729712884370,3.2078,2509.2,2508.7,7.1942]
[1729712884573,3.2078,2509.2,2509.0,0.39897]
[1729712884773,0.399,2508.9,2508.7,0.39902]
[1729712884980,3.11,2508.9,2508.8,0.399]
[1729712885171,3.50899,2508.9,2508.8,0.399]
[1729712885375,7.83236962,2508.9,2508.8,0.399]
[1729712885581,7.43337962,2508.9,2508.8,0.39901]
[1729712885879,7.43337962,2508.9,2508.6,1.487]
[1729712886073,7.43337962,2508.9,2508.8,0.39901]
[1729712886474,0.39901,2508.8,2508.7,0.39902]
[1729712886877,4.61858616,2508.8,2508.7,0.39902]
[1729712889799,4.58410075,2508.9,2508.8,0.399]
[1729712890003,1.79809,2509.0,2508.5,1.487]
[1729712890306,1.3991,2509.0,2508.9,0.39899]
[1729712890616,5.9793582,2509.0,2508.9,0.39899]
[1729712890805,5.9793582,2509.0,2508.5,1.487]
[1729712890806,6.3783382,2509.0,2508.5,1.487]
[1729712890991,6.3783382,2509.0,2508.8,0.399]
[1729712890992,0.39899,2508.9,2508.8,0.399]
[1729712891198,4.5802582,2509.0,2508.9,0.39899]
[1729712891399,4.5802582,2508.9,2508.8,0.39901]
[1729712891586,3.2078,2509.2,2508.8,0.39901]
[1729712891794,3.2078,2509.2,2509.1,0.39896]
[1729712892182,7.78290203,2509.2,2509.1,0.39896]
[1729712895480,7.78290203,2509.2,2509.1,0.45359235]
[1729712898490,4.57510203,2509.2,2509.1,4.43919235]
[1729712898688,0.39886,2509.8,2509.7,0.39886]
[1729712899082,4.79921931,2509.8,2509.7,0.39886]
[1729712899287,4.79921931,2509.8,2509.7,23.29886]
[1729712899585,4.40035931,2509.8,2509.7,23.35349235]
[1729712900985,4.79920931,2509.8,2509.7,22.95463235]
[1729712901187,4.79920931,2509.8,2509.7,0.45350235]
[1729712901891,4.79920931,2509.8,2509.7,0.05463235]
[1729712902691,0.39892,2509.4,2509.3,1.91693]
[1729712903088,4.61606063,2509.4,2509.3,1.91692]
[1729712903293,6.01936063,2509.4,2509.3,1.91692]
[1729712903789,5.62044063,2509.4,2509.0,22.9]
[1729712903982,0.39898,2509.0,2508.9,3.2078]
[1729712904386,4.739578,2509.0,2508.9,3.2078]
[1729712904588,0.39906,2508.5,2508.4,0.39906]
[1729712904783,3.11,2508.5,2508.4,0.39906]
[1729712904988,3.2078,2508.6,2508.5,0.39906]
[1729712905204,3.2078,2508.9,2508.8,0.39901]
[1729712905393,3.11,2509.3,2509.2,0.39895]
[1729712905394,6.3178,2509.3,2509.2,0.39895]
[1729712905695,6.3178,2509.3,2509.0,0.39898]
[1729712905696,3.11,2509.1,2509.0,0.39898]
[1729712905892,4.31812594,2509.2,2509.1,0.39896]
[1729712906195,4.31812594,2509.1,2509.0,0.39898]
[1729712906386,4.31812594,2509.2,2508.9,0.99749]
[1729712906593,6.3178,2509.3,2508.8,1.91701]
[1729712906796,6.71674,2509.3,2509.2,0.39895]
[1729712907288,0.39895,2509.2,2509.0,0.39896]
[1729712907699,10.51396934,2509.3,2509.1,0.39895]
[1729712907700,6.71674,2509.3,2509.1,0.39895]
[1729712907895,0.39898,2509.0,2508.9,22.9]
[1729712908196,0.39901,2508.8,2508.7,0.39903]
[1729712908399,0.39901,2508.8,2508.6,1.518]
[1729712908400,3.11,2508.8,2508.6,1.518]
[1729712908696,0.6658,2508.7,2508.6,1.91704]
[1729712908996,5.1036994,2508.7,2508.6,24.81704]
[1729712909197,4.4378994,2508.7,2508.6,28.80344]
[1729712909495,3.2078,2509.0,2508.9,0.39899]
[1729712909896,3.2078,2509.0,2508.9,4.38459]
[1729712911697,3.2078,2509.0,2508.9,0.39899]
[1729712911996,7.53153253,2509.0,2508.7,1.518]
[1729712912201,7.53153253,2509.0,2508.9,0.39899]
[1729712912202,7.93051253,2509.0,2508.9,0.39899]
[1729712912598,7.53153253,2509.0,2508.9,0.39899]
[1729712912996,7.93051253,2509.0,2508.9,0.39899]
[1729712913195,7.53153253,2509.0,2508.9,0.39899]
[1729712913605,7.93051253,2509.0,2508.9,0.39899]
[1729712913894,7.53153253,2509.0,2508.9,0.39899]
[1729712918500,7.93051253,2509.0,2508.9,0.39899]
[1729712918709,14.62713253,2509.0,2508.6,22.9]
[1729712918900,14.62713253,2509.0,2507.9,6.66037197]
[1729712918901,4.20538,2508.7,2508.2,1.91709]
[1729712919210,3.2078,2508.4,2507.9,0.6872]
[1729712919505,0.39912,2508.2,2508.1,0.39911]
[1729712919699,4.95625884,2508.3,2508.0,22.9]
[1729712919901,4.23405884,2508.2,2508.0,22.9]
[1729712920106,3.2078,2508.4,2508.1,3.9872]
[1729712920307,3.2078,2508.4,2508.3,0.39909]
[1729712920718,3.2078,2508.4,2508.3,4.38549]
[1729712921012,3.8676,2508.9,2508.8,0.39901]
[1729712921400,7.59182584,2508.9,2508.8,0.39901]
[1729712921602,7.59182584,2508.9,2508.8,4.38461]
[1729712924103,7.59182584,2508.9,2508.8,27.28461]
[1729712925006,7.59182584,2508.9,2508.8,22.9]
[1729712925308,0.39904,2508.6,2508.5,0.39906]
[1729712925503,3.60684,2508.6,2508.5,0.39906]
[1729712925804,7.88529583,2508.6,2508.5,0.39906]
[1729712926003,8.17285583,2508.6,2508.5,0.39906]
[1729712927003,8.57189583,2508.6,2508.5,0.39906]
[1729712927213,8.57190583,2508.6,2508.5,0.39906]
[1729712928628,8.17285583,2508.6,2508.5,0.39906]
[1729712929625,4.96505583,2508.6,2508.5,0.39906]
[1729712930225,4.96505583,2508.6,2508.3,22.9]
[1729712930632,4.96505583,2508.6,2508.5,0.39906]
[1729712930633,5.36410583,2508.6,2508.5,0.39906]
[1729712930821,0.98475583,2508.6,2508.5,3.50906]
[1729712931126,3.2078,2509.5,2509.4,0.39892]
[1729712931330,3.2078,2509.5,2509.2,1.562]
[1729712931529,1.3582,2509.4,2509.3,23.29893]
[1729712931731,1.3582,2509.4,2509.3,22.9]
[1729712931926,1.9438934,2509.4,2509.3,22.9]
[1729712932427,1.5449734,2509.4,2509.3,22.9]
[1729712932639,1.9438934,2509.4,2509.3,22.9]
[1729712933034,1.9438934,2509.4,2509.2,0.39894]
[1729712933533,1.9438934,2509.4,2509.3,0.39893]
[1729712934623,1.9438934,2509.4,2509.2,22.9]
[1729712934624,1.5449734,2509.4,2509.2,22.9]
[1729712934826,0.39893,2509.3,2509.2,23.29894]
[1729712935129,4.60554442,2509.3,2509.2,23.29893]
[1729712935332,4.20661442,2509.3,2509.2,23.29893]
[1729712936234,4.60554442,2509.3,2509.2,23.29893]
[1729712936537,4.20661442,2509.3,2509.2,23.29893]
[1729712936735,11.30221442,2509.3,2508.3,6.23771476]
[1729712936931,3.2078,2509.1,2509.0,0.39898]
[1729712937136,3.2078,2509.1,2509.0,23.29898]
[1729712937439,7.46693725,2509.1,2509.0,23.29898]
[1729712939244,3.2078,2510.0,2509.9,0.39884]
[1729712940236,4.14983766,2510.0,2509.9,4.38284]
[1729712940442,1.3469,2510.1,2509.9,3.984]
[1729712940639,1.3469,2510.1,2510.0,0.39882]
[1729712940944,1.3469,2510.1,2510.0,23.29882]
[1729712941445,1.3469,2510.1,2510.0,27.28282]
[1729712941742,1.3469,2510.1,2510.0,23.29882]
[1729712942138,1.3469,2510.1,2510.0,27.28282]
[1729712942343,0.6711,2510.1,2510.0,27.28282]
[1729712942638,3.2078,2510.4,2510.3,0.39877]
[1729712942844,3.2078,2510.4,2510.1,1.562]
[1729712943039,4.39045303,2510.3,2510.2,0.39879]
[1729712943241,7.59825303,2510.4,2510.1,1.562]
[1729712943537,3.2078,2510.4,2510.3,0.39877]
[1729712944041,7.5849307,2510.4,2510.3,0.39877]
[1729712944439,4.3771307,2510.4,2510.3,7.49197]
[1729712944742,1.3807,2510.7,2510.3,7.49197]
[1729712944743,0.7148,2510.7,2510.6,0.39872]
[1729712945241,5.17167992,2510.7,2510.6,0.39872]
[1729712946533,5.57038992,2510.7,2510.5,0.39873]
[1729712946739,5.57038992,2510.7,2510.3,3.11]
[1729712946943,5.17167992,2510.7,2510.2,1.562]
[1729712947240,5.17167992,2510.7,2510.0,22.9]
[1729712947241,0.39876,2510.4,2510.0,22.9]
[1729712947441,0.6902,2510.3,2510.2,0.39878]
[1729712947636,5.49024118,2510.3,2510.2,1.96078]
[1729712947834,5.09147118,2510.3,2510.0,22.9]
[1729712948139,5.09147118,2510.3,2509.7,3.11]
[1729712948336,0.39887,2509.7,2509.6,1.96088]
[1729712948535,3.2078,2509.9,2509.3,22.9]
[1729712948536,6.3178,2509.9,2509.3,22.9]
[1729712948741,0.39891,2509.5,2509.4,1.562]
[1729712949143,5.37894201,2509.5,2509.4,1.562]
[1729712949339,4.98003201,2509.5,2509.1,3.2078]
[1729712949541,4.98003201,2509.5,2509.1,1.96096]
[1729712949542,0.39895,2509.2,2509.1,1.96096]
[1729712949844,4.84211816,2509.2,2509.1,24.462]
[1729712950343,4.84211816,2509.2,2509.1,23.29896]
[1729712950646,4.44316816,2509.2,2509.1,23.29896]
[1729712951244,4.84211816,2509.2,2509.1,22.9]
[1729712951845,4.84211816,2509.2,2509.1,23.29896]
[1729712952150,0.39901,2508.9,2508.7,0.39902]
[1729712952342,0.6775,2508.8,2508.7,1.94201]
[1729712952545,4.86622051,2508.8,2508.7,1.94201]
[1729712952845,5.26523051,2508.8,2508.7,24.443]
[1729712953040,4.86622051,2508.8,2508.7,24.443]
[1729712953239,4.86622051,2508.8,2508.7,23.29903]
[1729712953741,4.18872051,2508.8,2508.7,23.29903]
[1729712954047,3.2078,2510.2,2508.7,30.12115696]
[1729712954247,1.09017,2510.3,2510.1,0.3988]
[1729712954442,4.97929815,2510.3,2509.9,3.11]
[1729712954649,0.01732329,2510.1,2510.0,0.39882]
[1729712954843,0.6914,2510.3,2509.9,3.11]
[1729712955046,0.6914,2510.3,2510.2,0.39879]
[1729712955351,5.00544145,2510.3,2510.2,0.39879]
[1729712956655,5.40422145,2510.3,2509.9,1.543]
[1729712956857,5.40422145,2510.3,2510.1,0.39879]
[1729712957248,5.00544145,2510.3,2510.1,22.9]
[1729712957544,5.00544145,2510.3,2510.2,0.39879]
[1729712957545,4.31404145,2510.3,2510.2,0.39879]
[1729712958149,4.31404145,2510.3,2510.2,4.38279]
[1729712959646,4.31404145,2510.3,2510.2,0.39879]
[1729712960047,4.31404145,2510.3,2510.2,4.38279]
[1729712960654,4.31404145,2510.3,2510.2,0.39879]
[1729712960855,4.31404145,2510.3,2510.2,4.38279]
[1729712961055,4.31404145,2510.3,2510.2,0.39879]
[1729712961255,4.31404145,2510.3,2510.2,4.38279]
[1729712963149,0.7171,2510.7,2510.6,0.39872]
[1729712963656,4.94869964,2510.7,2510.6,0.39872]
[1729712966256,5.34740964,2510.7,2510.6,0.39872]
[1729712966455,4.94869964,2510.7,2510.6,0.39872]
[1729712967048,5.34740964,2510.7,2510.6,0.39872]
[1729712967749,4.08239964,2510.7,2510.6,8.21192]
[1729712967957,3.2078,2511.4,2511.3,0.39861]
[1729712968148,3.2078,2511.4,2511.3,1.94161]
[1729712968349,3.2078,2511.8,2511.7,0.39855]
[1729712968662,3.2078,2511.8,2511.7,23.29855]
[1729712968860,3.2078,2511.8,2511.7,27.28015]
[1729712969255,3.2078,2512.1,2511.7,27.28015]
[1729712969565,3.2078,2512.1,2512.0,0.3985]
[1729712969753,4.98704,2512.4,2512.2,0.39846]
[1729712969947,4.5886,2512.4,2512.2,0.39846]
[1729712970156,4.57174546,2512.3,2512.2,0.39846]
[1729712970351,4.57174546,2512.3,2512.1,0.39848]
[1729712970751,4.57174546,2512.3,2512.0,1.94149]
[1729712971053,4.57174546,2512.3,2512.0,1.543]
[1729712971260,4.57174546,2512.3,2512.1,0.39849]
[1729712971454,4.97020546,2512.3,2512.0,1.543]
[1729712971960,4.97020546,2512.3,2512.0,1.9415]
[1729712972168,4.57174546,2512.3,2512.0,1.543]
[1729712972357,4.97020546,2512.3,2512.0,1.543]
[1729712973864,4.97020546,2512.3,2512.0,1.9415]
[1729712974160,4.57174546,2512.3,2512.0,1.543]
[1729712974356,4.57174546,2512.3,2511.8,0.39853]
[1729712974357,3.2078,2512.1,2511.8,0.39853]
[1729712974557,3.2078,2512.1,2511.9,1.542]
[1729712974758,3.60629,2512.1,2511.9,1.542]
[1729712975261,3.2078,2512.1,2511.9,1.94051]
[1729712975452,3.2078,2512.1,2511.9,1.542]
[1729712975655,3.2078,2512.1,2511.9,1.94052]
[1729712975863,3.2078,2512.1,2512.0,0.3985]
[1729712976161,3.2078,2512.1,2511.9,1.94051]
[1729712977263,3.2078,2512.1,2512.0,0.3985]
[1729712977464,3.2078,2512.1,2511.9,1.94051]
[1729712977665,0.39848,2512.2,2511.9,1.94051]
[1729712977962,4.35957554,2512.1,2512.0,0.3985]
[1729712978960,4.35957554,2512.1,2511.9,1.542]
[1729712979164,4.75807554,2512.1,2511.9,1.94051]
[1729712979663,0.6984,2512.0,2511.9,1.94051]
[1729712983171,0.10018249,2512.0,2511.9,1.94051]
[1729712987983,3.2078,2512.7,2511.9,11.7428]
[1729712988281,3.8923,2513.0,2512.9,0.39836]
[1729712988475,3.8923,2513.0,2512.9,1.92736]
[1729712988982,3.8923,2513.0,2512.9,24.82736]
[1729712989786,3.2078,2513.0,2512.9,24.82736]
[1729712992178,3.60614,2513.0,2512.9,24.82736]
[1729712992379,3.2078,2513.0,2512.9,24.82736]
[1729712992879,3.2078,2513.0,2512.9,22.9]
[1729712993081,0.39841,2512.6,2512.5,1.92742]
[1729712993282,11.77719053,2513.0,2512.4,1.529]
[1729712993485,0.3984,2512.7,2512.6,0.3984]
[1729712993776,11.77719053,2513.0,2512.4,24.429]
[1729712993983,0.39842,2512.5,2512.4,24.429]
[1729712994179,0.6916,2512.6,2512.4,24.82744]
[1729712994374,1.443,2512.6,2512.4,23.29843]
[1729712994579,4.45261653,2512.5,2512.3,4.639]
[1729712994883,4.85103653,2512.5,2512.4,0.39843]
[1729712995074,4.45261653,2512.5,2512.4,0.39843]
[1729712996387,4.85103653,2512.5,2512.4,0.39843]
[1729712996785,4.45261653,2512.5,2512.4,0.39843]
[1729712997684,4.85103653,2512.5,2512.4,0.39843]
[1729712998282,4.45261653,2512.5,2512.2,24.507]
[1729712998686,0.39844,2512.4,2512.3,0.39845]
[1729712999586,4.45261653,2512.5,2512.2,24.507]
[1729712999885,4.45261653,2512.5,2512.4,0.39844]
[1729713000186,1.443,2512.6,2512.5,0.39842]
[1729713000388,3.2078,2513.0,2512.9,0.39836]
[1729713000587,3.2078,2513.0,2512.9,3.50836]
[1729713000895,3.2078,2513.0,2512.9,7.48756]
[1729713001090,0.99556,2513.8,2512.9,7.48756]
[1729713001091,3.2078,2513.3,2513.2,0.39831]
[1729713001287,3.2078,2513.3,2513.2,23.29831]
[1729713002383,3.6061,2513.3,2513.2,22.9]
[1729713003794,8.08069595,2513.3,2513.2,22.9]
[1729713004690,7.68239595,2513.3,2513.2,22.9]
[1729713004886,7.68239595,2513.3,2513.2,23.29831]
[1729713005191,8.08069595,2513.3,2513.2,22.9]
[1729713005590,8.08069595,2513.3,2513.2,23.29831]
[1729713005785,8.08069595,2513.3,2513.2,22.9]
[1729713005990,8.08069595,2513.3,2513.2,23.29831]
[1729713006196,7.68239595,2513.3,2513.2,23.29831]
[1729713006395,3.2078,2513.3,2513.2,23.29831]
[1729713006597,1.4466,2513.4,2513.2,26.8792]
[1729713006796,3.6061,2513.3,2513.2,22.9]
[1729713006996,3.6061,2513.3,2512.4,1.03278707]
[1729713006997,0.99579,2513.2,2512.7,1.699]
[1729713007294,3.2078,2513.0,2512.7,1.699]
[1729713007603,3.2078,2513.0,2512.9,0.39836]
[1729713007893,7.46774306,2513.0,2512.9,0.39836]
[1729713008596,3.2078,2513.0,2512.9,4.37756]
[1729713008795,4.6544,2513.4,2513.1,0.39833]
[1729713008990,4.6544,2513.4,2513.3,0.3983]
[1729713009503,9.22664632,2513.4,2512.9,3.11]
[1729713009893,5.05269,2513.4,2513.1,3.11]
[1729713010088,3.2078,2513.7,2513.6,0.39825]
[1729713010393,3.2078,2514.0,2513.9,0.3982]
[1729713010595,3.2078,2514.0,2513.9,3.5082]
[1729713010793,3.2078,2514.0,2513.9,7.4858]
[1729713010986,3.2078,2514.0,2513.9,30.3858]
[1729713011393,0.6958,2514.1,2514.0,0.39819]
[1729713011588,0.6958,2514.1,2514.0,4.37579]
[1729713011894,1.4425,2514.4,2514.0,4.37579]
[1729713011895,0.7272,2514.4,2514.3,0.39814]
[1729713012092,0.4,2514.5,2514.0,3.11]
[1729713012294,0.4,2514.5,2514.1,1.699]
[1729713012492,0.4,2514.5,2514.4,0.39812]
[1729713012691,0.39798,2515.3,2515.2,0.07]
[1729713012890,3.2078,2515.7,2515.2,1.699]
[1729713013091,3.2078,2515.7,2515.4,0.39796]
[1729713013092,3.60780583,2515.5,2515.4,0.39796]
[1729713013288,0.39795,2515.5,2515.4,22.9]
[1729713013490,0.39795,2515.5,2515.1,1.699]
[1729713013491,7.77368858,2515.5,2515.1,1.699]
[1729713013688,3.60780583,2515.4,2515.1,1.699]
[1729713013898,3.60780583,2515.3,2515.2,22.9]
[1729713014488,3.60780583,2515.3,2515.2,23.298]
[1729713014792,4.00578583,2515.3,2515.2,22.9]
[1729713015394,0.398,2515.2,2515.0,1.699]
[1729713015600,3.60780583,2515.1,2515.0,1.699]
[1729713015801,3.60780583,2515.1,2514.9,0.39803]
[1729713015988,0.39807,2514.8,2514.5,0.3981]
[1729713016293,4.35840583,2514.7,2514.6,0.39809]
[1729713016618,4.35840583,2514.7,2514.5,0.3981]
[1729713017098,4.35840583,2514.7,2514.6,0.39809]
[1729713017293,1.4735,2515.0,2514.8,0.39805]
[1729713017488,5.08130583,2515.0,2514.9,0.39804]
[1729713017687,0.7426,2515.3,2515.1,0.398]
[1729713017891,0.7426,2515.3,2515.0,3.2078]
[1729713017892,3.60780583,2515.2,2515.0,3.2078]
[1729713018094,0.7426,2515.3,2515.0,3.2078]
[1729713018296,3.2078,2515.5,2515.4,0.39796]
[1729713018788,0.7077,2515.8,2515.4,7.183]
[1729713019089,4.31550583,2515.8,2515.4,3.2078]
[1729713019399,0.3979,2515.8,2515.6,0.39793]
[1729713019591,0.7426,2515.9,2515.8,0.3979]
[1729713019797,0.7539,2516.3,2515.7,3.2078]
[1729713020116,4.75953583,2516.3,2516.1,0.39785]
[1729713020290,4.75953583,2516.3,2516.1,2.09584]
[1729713020291,4.36170583,2516.3,2516.1,2.09584]
[1729713020597,3.2078,2516.4,2516.2,7.8044]
[1729713020794,4.00562583,2516.4,2516.1,5.30365]
[1729713020999,4.00561583,2516.4,2516.1,3.60564]
[1729713021302,3.2078,2517.0,2516.3,3.83]
[1729713021593,3.60780583,2516.7,2516.3,3.83]
[1729713021794,3.60780583,2516.7,2516.5,0.39779]
[1729713022008,3.60780583,2516.7,2516.5,1.698]
[1729713022009,0.39778,2516.6,2516.5,1.698]
[1729713022193,0.3978,2516.5,2516.2,0.39783]
[1729713022389,0.7174,2516.9,2516.1,7.0378]
[1729713022597,4.00563583,2516.3,2516.2,1.698]
[1729713022791,3.2078,2516.7,2515.8,3.2078]
[1729713022792,3.60780583,2516.2,2515.8,3.2078]
[1729713023098,4.28758545,2516.6,2515.8,1.698]
[1729713023099,3.60780583,2516.1,2515.8,1.698]
[1729713023302,3.60780583,2516.1,2515.8,5.92589]
[1729713023603,3.60780583,2516.1,2515.9,0.39788]
[1729713023994,3.60780583,2516.1,2515.8,5.528]
[1729713024302,3.60780583,2516.1,2515.9,0.39788]
[1729713024502,3.60780583,2516.0,2515.8,4.22788]
[1729713024802,3.60780583,2516.0,2515.8,1.698]
[1729713024803,0.39789,2515.9,2515.8,1.698]
[1729713024999,4.76479583,2515.9,2515.8,1.698]
[1729713025310,4.76479583,2515.9,2515.5,0.39794]
[1729713025311,4.36690583,2515.9,2515.5,22.9]
[1729713025605,3.60780583,2515.7,2515.5,23.29794]
[1729713025807,3.60780583,2515.7,2515.6,1.698]
[1729713025808,4.00572583,2515.7,2515.6,1.698]
[1729713026099,3.60780583,2515.6,2515.5,1.698]
[1729713026700,3.60780583,2515.6,2515.4,4.9058]
[1729713026893,3.60780583,2515.5,2515.4,4.9058]
[1729713027096,4.00575583,2515.5,2515.4,4.9058]
[1729713027296,3.60780583,2515.5,2515.2,22.9]
[1729713027503,4.00579583,2515.3,2515.2,1.698]
[1729713028204,4.00578583,2515.3,2515.2,1.698]
[1729713028394,3.60780583,2515.3,2515.2,1.698]
[1729713028600,2.61202113,2515.3,2515.2,1.698]
[1729713028801,2.61202113,2515.3,2515.1,26.1078]
[1729713029000,2.61202113,2515.2,2515.1,26.1078]
[1729713029905,3.76542113,2515.2,2515.1,3.2078]
[1729713030102,0.99504,2515.1,2514.4,3.2078]
[1729713030296,2.61202113,2514.7,2514.5,22.9]
[1729713030499,2.61202113,2514.7,2514.6,0.39809]
[1729713031409,1.21783704,2514.7,2514.6,0.39809]
[1729713031713,0.6881,2515.1,2514.6,3.9768]
[1729713032005,1.90593704,2515.1,2514.8,3.2078]
[1729713032198,1.21783704,2515.1,2515.0,0.39803]
[1729713032400,1.21783704,2515.1,2514.9,0.39803]
[1729713032717,0.39795,2515.5,2515.0,5.524]
[1729713032902,1.21783704,2515.5,2515.3,0.39797]
[1729713033103,3.9633,2515.6,2515.4,0.39796]
[1729713033409,1.21783704,2515.5,2515.4,0.39796]
[1729713033599,1.21783704,2515.5,2515.0,5.524]
[1729713033801,1.21783704,2515.5,2515.4,0.39796]
[1729713034302,1.21783704,2515.5,2515.0,5.524]
[1729713034502,1.61579704,2515.5,2515.3,0.39797]
[1729713034702,1.61579704,2515.5,2515.0,5.524]
[1729713035011,1.21783704,2515.5,2515.4,0.39796]
[1729713035395,1.61578704,2515.5,2515.4,0.39796]
[1729713035600,1.21783704,2515.5,2515.4,0.39796]
[1729713036900,1.21783704,2515.5,2515.1,0.99503]
[1729713037203,1.21783704,2515.5,2515.4,0.39796]
[1729713038107,9.24616006,2515.5,2514.5,22.9]
[1729713038302,1.21783704,2514.9,2514.8,0.39805]
[1729713038502,1.61585704,2515.1,2514.7,3.83]
[1729713038796,1.21783704,2515.1,2514.7,3.83]
[1729713038996,1.21783704,2514.8,2514.5,22.9]
[1729713039205,4.42563704,2515.0,2514.5,22.9]
[1729713039403,4.42563704,2515.0,2514.9,0.39804]
[1729713039703,1.21783704,2514.6,2514.5,22.9]
[1729713039911,4.2015804,2514.9,2514.5,22.9]
[1729713039912,1.21783704,2514.9,2514.5,22.9]
[1729713040204,0.39805,2514.9,2514.8,0.39806]
[1729713040402,3.60584,2515.0,2514.8,0.39806]
[1729713040603,4.42563704,2515.0,2514.9,0.39804]
[1729713040800,4.82366704,2515.0,2514.5,22.9]
[1729713041000,4.82366704,2515.0,2514.9,0.39804]
[1729713041409,4.42563704,2515.0,2514.9,0.39804]
[1729713041604,4.42563704,2515.0,2514.5,22.9]
[1729713041999,4.82366704,2515.0,2514.6,0.39809]
[1729713042201,4.42563704,2515.0,2514.9,0.39804]
[1729713042607,4.82367704,2515.0,2514.8,0.39805]
[1729713042803,4.42563704,2515.0,2514.8,0.39805]
[1729713043008,4.82366704,2515.0,2514.9,0.39804]
[1729713043208,1.21783704,2514.9,2514.8,0.39804]
[1729713043606,1.21783704,2514.9,2514.5,22.9]
[1729713043915,1.21783704,2514.9,2514.8,0.39806]
[1729713044111,2.61024795,2515.0,2514.9,0.39804]
[1729713044315,2.61024795,2515.0,2514.6,4.97203]
[1729713044316,0.7373,2515.2,2515.1,0.39801]
[1729713044805,3.2078,2515.5,2515.1,3.976]
[1729713045001,0.39799,2515.3,2515.1,0.398]
[1729713045206,0.39799,2515.3,2514.6,3.2078]
[1729713045207,1.21783704,2515.2,2514.6,3.2078]
[1729713045408,1.21783704,2514.9,2514.8,0.39806]
[1729713045607,1.61587704,2514.9,2514.8,0.39806]
[1729713045914,1.21783704,2514.9,2514.8,0.39806]
[1729713046914,1.21783704,2514.9,2514.6,1.694]
[1729713047115,1.61589704,2514.9,2514.7,0.39807]
[1729713047417,0.7206,2514.8,2514.7,1.694]
[1729713047723,0.7206,2514.8,2514.5,22.9]
[1729713047724,0.39808,2514.7,2514.5,22.9]
[1729713047920,0.39808,2514.7,2514.5,27.2749]
[1729713047921,1.14638,2514.7,2514.5,27.2749]
[1729713048110,0.39806,2514.9,2514.7,0.39807]
[1729713048309,0.39808,2514.7,2514.5,23.29809]
[1729713048514,1.61588704,2514.9,2514.7,0.39807]
[1729713048711,1.61588704,2514.9,2514.7,0.39806]
[1729713048905,1.21783704,2514.9,2514.7,0.39806]
[1729713049209,0.39809,2514.6,2514.5,22.9]
[1729713049517,0.39809,2514.6,2514.5,23.29811]
[1729713049518,1.21783704,2514.6,2514.5,23.29811]
[1729713049709,1.61592704,2514.6,2514.5,22.9]
[1729713049911,1.21783704,2514.6,2514.5,22.9]
[1729713050214,1.21783704,2514.6,2514.5,23.29811]
[1729713052817,1.21783704,2514.6,2514.5,22.9]
[1729713053010,1.21783704,2514.6,2514.5,23.29811]
[1729713053920,2.36062704,2514.6,2514.5,22.9]
[1729713054717,6.54970276,2514.6,2514.5,22.9]
[1729713055021,6.54970276,2514.6,2514.5,23.29811]
[1729713055022,3.09682704,2514.6,2514.5,23.29811]
[1729713055617,2.69873704,2514.6,2514.5,23.29811]
[1729713055812,3.09682704,2514.6,2514.5,23.29811]
[1729713057522,2.69873704,2514.6,2514.5,23.29811]
[1729713057922,1.96253704,2514.6,2514.5,23.29811]
[1729713058314,2.36062704,2514.6,2514.5,22.9]
[1729713058725,0.39815,2514.3,2514.2,0.39814]
[1729713059220,0.39815,2514.3,2513.9,0.99551]